[Event "*** Titled Tuesday Blitz"]
[Site "Chess.com"]
[Date "2021.02.02"]
[Round "10"]
[White "Mr_Sinigami"]
[Black "Ave_Mariia"]
[Result "1-0"]
[WhiteElo "2634"]
[BlackElo "2475"]
[TimeControl "180+1"]
[EndTime "11:57:27 PST"]
[Termination "Mr_Sinigami won by resignation"]

1. e4 {[%clk 0:03:00.9]} 1... c5 {[%clk 0:02:59.6]} 2. Nf3 {[%clk 0:02:59.9]}
2... d6 {[%clk 0:02:59.9]} 3. d4 {[%clk 0:02:58.8]} 3... cxd4 {[%clk 0:03:00.8]}
4. Nxd4 {[%clk 0:02:59.6]} 4... Nf6 {[%clk 0:03:01.2]} 5. Nc3 {[%clk 0:02:59.6]}
5... g6 {[%clk 0:03:01.7]} 6. Be3 {[%clk 0:02:58.4]} 6... Bg7 {[%clk 0:03:01.4]}
7. Qd2 {[%clk 0:02:50.2]} 7... Ng4 {[%clk 0:02:59.7]} 8. Bg5 {[%clk 0:02:43.2]}
8... h6 {[%clk 0:02:59]} 9. Bh4 {[%clk 0:02:43]} 9... Nc6 {[%clk 0:02:41.2]} 10.
Nb3 {[%clk 0:02:39.2]} 10... Be6 {[%clk 0:02:36.3]} 11. h3 {[%clk 0:02:33.1]}
11... Nge5 {[%clk 0:02:33.4]} 12. Nd5 {[%clk 0:02:32.3]} 12... g5 {[%clk
0:02:18.7]} 13. Bg3 {[%clk 0:02:32]} 13... Ng6 {[%clk 0:02:07.8]} 14. c3 {[%clk
0:02:28.5]} 14... Rc8 {[%clk 0:02:05.8]} 15. Be2 {[%clk 0:02:24.4]} 15... Nce5
{[%clk 0:02:05.4]} 16. Nd4 {[%clk 0:02:18.3]} 16... Bxd5 {[%clk 0:02:00.5]} 17.
exd5 {[%clk 0:02:17.2]} 17... Qd7 {[%clk 0:01:52.5]} 18. O-O {[%clk 0:02:12.6]}
18... O-O {[%clk 0:01:49.7]} 19. f4 {[%clk 0:02:04.7]} 19... gxf4 {[%clk
0:01:47.9]} 20. Bxf4 {[%clk 0:02:04.7]} 20... Nxf4 {[%clk 0:01:43.4]} 21. Rxf4
{[%clk 0:02:01.1]} 21... Ng6 {[%clk 0:01:33.7]} 22. Rf2 {[%clk 0:01:42.8]} 22...
e6 {[%clk 0:01:26.1]} 23. Bg4 {[%clk 0:01:34.7]} 23... Rce8 {[%clk 0:01:01.4]}
24. Raf1 {[%clk 0:01:19.6]} 24... Ne5 {[%clk 0:00:46.1]} 25. dxe6 {[%clk
0:00:52.2]} 25... fxe6 {[%clk 0:00:47]} 26. Rxf8+ {[%clk 0:00:51.6]} 26... Bxf8
{[%clk 0:00:46.5]} 27. Rxf8+ {[%clk 0:00:51.5]} 27... Kxf8 {[%clk 0:00:42.1]}
28. Qxh6+ {[%clk 0:00:51.4]} 28... Ke7 {[%clk 0:00:30.2]} 29. Qg5+ {[%clk
0:00:50.5]} 29... Kf8 {[%clk 0:00:24.2]} 30. Qh6+ {[%clk 0:00:37]} 30... Ke7
{[%clk 0:00:23.2]} 31. Bxe6 {[%clk 0:00:36.7]} 31... Qc7 {[%clk 0:00:14.2]} 32.
Nf5+ {[%clk 0:00:21.9]} 32... Kd8 {[%clk 0:00:14.2]} 33. Qf6+ {[%clk 0:00:21]}
33... Re7 {[%clk 0:00:11.8]} 34. Qf8+ {[%clk 0:00:20.2]} 34... Re8 {[%clk
0:00:11.8]} 35. Qf6+ {[%clk 0:00:19.2]} 35... Re7 {[%clk 0:00:12.2]} 36. Qxe7+
{[%clk 0:00:18.7]} 36... Qxe7 {[%clk 0:00:12]} 37. Nxe7 {[%clk 0:00:19.2]} 37...
Kxe7 {[%clk 0:00:12.9]} 38. Bd5 {[%clk 0:00:18.9]} 38... Nd3 {[%clk 0:00:13]}
39. b3 {[%clk 0:00:16.2]} 39... b5 {[%clk 0:00:12.6]} 40. Kf1 {[%clk 0:00:15.5]}
40... Nc1 {[%clk 0:00:12.7]} 41. a3 {[%clk 0:00:15]} 41... Na2 {[%clk
0:00:09.9]} 42. c4 {[%clk 0:00:15]} 42... Nc3 {[%clk 0:00:07.7]} 43. Ke1 {[%clk
0:00:12.7]} 43... a6 {[%clk 0:00:06.1]} 44. Bc6 {[%clk 0:00:10.4]} 44... bxc4
{[%clk 0:00:06]} 45. bxc4 {[%clk 0:00:10.6]} 45... Nb1 {[%clk 0:00:05.2]} 46. a4
{[%clk 0:00:10.7]} 46... Na3 {[%clk 0:00:05.5]} 47. Bd5 {[%clk 0:00:10]} 47...
Nc2+ {[%clk 0:00:04.6]} 48. Kd2 {[%clk 0:00:10]} 48... Nb4 {[%clk 0:00:04.2]}
49. Kc3 {[%clk 0:00:09.8]} 49... a5 {[%clk 0:00:04.5]} 50. h4 {[%clk 0:00:09.2]}
50... Kf6 {[%clk 0:00:04.9]} 51. g3 {[%clk 0:00:08.8]} 51... Kf5 {[%clk
0:00:04.6]} 52. Kd4 {[%clk 0:00:08.6]} 52... Kg4 {[%clk 0:00:04.9]} 53. Ke4
{[%clk 0:00:08.4]} 53... Kxg3 {[%clk 0:00:05.1]} 54. h5 {[%clk 0:00:08.2]} 54...
Na6 {[%clk 0:00:03.3]} 55. h6 {[%clk 0:00:08.2]} 55... Nc5+ {[%clk 0:00:03.8]}
56. Kf5 {[%clk 0:00:08.5]} 56... Nd7 {[%clk 0:00:03.5]} 57. h7 {[%clk 0:00:08]}
1-0

[Event "*** Titled Tuesday Blitz"]
[Site "Chess.com"]
[Date "2021.02.02"]
[Round "10"]
[White "PavelShkapenko"]
[Black "MatyChess1"]
[Result "0-1"]
[WhiteElo "2717"]
[BlackElo "2600"]
[TimeControl "180+1"]
[EndTime "11:57:28 PST"]
[Termination "MatyChess1 won by resignation"]

1. e4 {[%clk 0:02:58.5]} 1... c5 {[%clk 0:03:00.3]} 2. c3 {[%clk 0:02:55.6]}
2... Nf6 {[%clk 0:02:59.8]} 3. e5 {[%clk 0:02:55.9]} 3... Nd5 {[%clk 0:03:00.4]}
4. d4 {[%clk 0:02:56.2]} 4... cxd4 {[%clk 0:03:01.3]} 5. cxd4 {[%clk 0:02:52.7]}
5... d6 {[%clk 0:03:01.3]} 6. Nf3 {[%clk 0:02:51.9]} 6... Nc6 {[%clk 0:02:59.8]}
7. Bc4 {[%clk 0:02:51.9]} 7... Nb6 {[%clk 0:02:57.5]} 8. Bb3 {[%clk 0:02:51.7]}
8... g6 {[%clk 0:02:56.4]} 9. Bf4 {[%clk 0:02:49.2]} 9... Bg7 {[%clk 0:02:47.1]}
10. exd6 {[%clk 0:02:47.6]} 10... O-O {[%clk 0:02:47]} 11. h3 {[%clk 0:02:47.2]}
11... Nxd4 {[%clk 0:02:06.8]} 12. Nxd4 {[%clk 0:02:37]} 12... e5 {[%clk
0:02:06]} 13. Bg3 {[%clk 0:02:35.7]} 13... exd4 {[%clk 0:02:02.9]} 14. O-O
{[%clk 0:02:34.8]} 14... Bf5 {[%clk 0:02:01.4]} 15. Na3 {[%clk 0:02:27.5]} 15...
d3 {[%clk 0:01:56.5]} 16. Qd2 {[%clk 0:02:21.4]} 16... Qf6 {[%clk 0:01:53.7]}
17. Rab1 {[%clk 0:02:10.1]} 17... Rad8 {[%clk 0:01:33.3]} 18. Nb5 {[%clk
0:01:36.4]} 18... a6 {[%clk 0:01:31.4]} 19. Nc3 {[%clk 0:01:36.5]} 19... Qd4
{[%clk 0:01:26]} 20. Rfe1 {[%clk 0:01:34.3]} 20... Nc4 {[%clk 0:01:23.5]} 21.
Bxc4 {[%clk 0:01:34.1]} 21... Qxc4 {[%clk 0:01:24.4]} 22. Re7 {[%clk 0:01:32]}
22... b5 {[%clk 0:01:24.7]} 23. a3 {[%clk 0:01:25.8]} 23... a5 {[%clk
0:01:23.1]} 24. Rc1 {[%clk 0:01:22.9]} 24... b4 {[%clk 0:01:07]} 25. Nd1 {[%clk
0:00:59.6]} 25... Qd4 {[%clk 0:00:55.5]} 26. Rcc7 {[%clk 0:00:49.6]} 26... Bf6
{[%clk 0:00:50.7]} 27. Kh2 {[%clk 0:00:43]} 27... Rxd6 {[%clk 0:00:45.6]} 28.
axb4 {[%clk 0:00:40.1]} 28... axb4 {[%clk 0:00:44.8]} 29. Re1 {[%clk 0:00:38.4]}
29... Re6 {[%clk 0:00:37.9]} 30. Rxe6 {[%clk 0:00:37.3]} 30... Bxe6 {[%clk
0:00:38.8]} 31. Rb7 {[%clk 0:00:36.4]} 31... b3 {[%clk 0:00:26.2]} 32. Nc3
{[%clk 0:00:35.2]} 32... Rc8 {[%clk 0:00:22]} 33. Bf4 {[%clk 0:00:30.6]} 33...
Be5 {[%clk 0:00:21.3]} 34. Bxe5 {[%clk 0:00:29.1]} 34... Qxe5+ {[%clk
0:00:22.2]} 35. Kg1 {[%clk 0:00:29.2]} 35... Bf5 {[%clk 0:00:21.4]} 36. Rxb3
{[%clk 0:00:28.2]} 36... Ra8 {[%clk 0:00:21.4]} 37. Ra3 {[%clk 0:00:28.3]} 37...
Rb8 {[%clk 0:00:21.1]} 38. Ra1 {[%clk 0:00:27]} 38... h5 {[%clk 0:00:21]} 39.
Re1 {[%clk 0:00:26.8]} 39... Rxb2 {[%clk 0:00:18.1]} 40. Rxe5 {[%clk 0:00:17.4]}
40... Rxd2 {[%clk 0:00:17.6]} 41. Rd5 {[%clk 0:00:16.8]} 41... Rc2 {[%clk
0:00:16.1]} 42. Nb5 {[%clk 0:00:11.4]} 42... d2 {[%clk 0:00:16]} 43. Kh2 {[%clk
0:00:10.8]} 43... Rc5 {[%clk 0:00:13.1]} 44. Rd8+ {[%clk 0:00:10.2]} 44... Kg7
{[%clk 0:00:13]} 45. Nd6 {[%clk 0:00:09.8]} 45... Bc2 {[%clk 0:00:06.2]} 46.
Ne8+ {[%clk 0:00:09.4]} 46... Kf8 {[%clk 0:00:06.7]} 47. Nc7+ {[%clk 0:00:06.2]}
47... Ke7 {[%clk 0:00:05.8]} 48. Rxd2 {[%clk 0:00:05.6]} 48... Rxc7 {[%clk
0:00:05.9]} 49. Kg3 {[%clk 0:00:06.1]} 49... Bb3 {[%clk 0:00:06.4]} 50. f3
{[%clk 0:00:06.2]} 50... Be6 {[%clk 0:00:07]} 51. h4 {[%clk 0:00:06.4]} 51...
Rc4 {[%clk 0:00:07.5]} 52. Rb2 {[%clk 0:00:05.4]} 52... Rc5 {[%clk 0:00:07.8]}
53. Rb6 {[%clk 0:00:05.2]} 53... Kf6 {[%clk 0:00:08.4]} 54. Rb4 {[%clk
0:00:05.2]} 54... Rf5 {[%clk 0:00:08.9]} 55. Ra4 {[%clk 0:00:04.7]} 55... Rd5
{[%clk 0:00:09.6]} 56. Rb4 {[%clk 0:00:05]} 56... Rd7 {[%clk 0:00:10.3]} 57. Ra4
{[%clk 0:00:05.3]} 57... Ke7 {[%clk 0:00:11.2]} 58. Rb4 {[%clk 0:00:05.7]} 58...
Rd2 {[%clk 0:00:11.8]} 59. Ra4 {[%clk 0:00:06.1]} 59... Ra2 {[%clk 0:00:12.4]}
60. Rb4 {[%clk 0:00:06.3]} 60... Kf6 {[%clk 0:00:12.1]} 61. Rb5 {[%clk
0:00:06.4]} 61... Kg7 {[%clk 0:00:12.1]} 62. Rc5 {[%clk 0:00:06.7]} 62... Bf5
{[%clk 0:00:12.3]} 63. Rb5 {[%clk 0:00:06.7]} 63... Bd3 {[%clk 0:00:12.3]} 64.
Rd5 {[%clk 0:00:05.2]} 64... Bf1 {[%clk 0:00:12.5]} 0-1

[Event "*** Titled Tuesday Blitz"]
[Site "Chess.com"]
[Date "2021.02.02"]
[Round "10"]
[White "kasparicy"]
[Black "verdest"]
[Result "1/2-1/2"]
[WhiteElo "2355"]
[BlackElo "2479"]
[TimeControl "180+1"]
[EndTime "11:57:28 PST"]
[Termination "Game drawn by repetition"]

1. e4 {[%clk 0:03:00.9]} 1... c5 {[%clk 0:02:59.6]} 2. Nf3 {[%clk 0:03:00.5]}
2... Nc6 {[%clk 0:02:59.8]} 3. d4 {[%clk 0:03:00.9]} 3... cxd4 {[%clk
0:03:00.7]} 4. Nxd4 {[%clk 0:03:01.7]} 4... e5 {[%clk 0:03:01]} 5. Nb5 {[%clk
0:03:00.6]} 5... d6 {[%clk 0:03:00.8]} 6. N1c3 {[%clk 0:03:00.8]} 6... a6 {[%clk
0:02:59.8]} 7. Na3 {[%clk 0:03:00.8]} 7... Be6 {[%clk 0:02:56.6]} 8. Nd5 {[%clk
0:03:00.9]} 8... Nf6 {[%clk 0:02:49.5]} 9. Bg5 {[%clk 0:02:55]} 9... Bxd5 {[%clk
0:02:39.9]} 10. Bxf6 {[%clk 0:02:54.7]} 10... Qxf6 {[%clk 0:02:38.8]} 11. exd5
{[%clk 0:02:54.3]} 11... Nb8 {[%clk 0:02:12.9]} 12. c4 {[%clk 0:02:52.8]} 12...
Nd7 {[%clk 0:02:09.4]} 13. Be2 {[%clk 0:02:46.5]} 13... g6 {[%clk 0:02:06]} 14.
Bg4 {[%clk 0:02:45.5]} 14... Qe7 {[%clk 0:02:01.5]} 15. O-O {[%clk 0:02:44.5]}
15... f5 {[%clk 0:01:59.9]} 16. Be2 {[%clk 0:02:43.7]} 16... Bg7 {[%clk
0:01:59.5]} 17. b4 {[%clk 0:02:37.8]} 17... b6 {[%clk 0:01:43.7]} 18. Rc1 {[%clk
0:02:34.9]} 18... O-O {[%clk 0:01:42.2]} 19. c5 {[%clk 0:01:58.3]} 19... bxc5
{[%clk 0:01:39.3]} 20. bxc5 {[%clk 0:01:58.7]} 20... Nxc5 {[%clk 0:01:38.3]} 21.
Rxc5 {[%clk 0:01:59]} 21... dxc5 {[%clk 0:01:38.9]} 22. d6 {[%clk 0:01:59.9]}
22... Qd7 {[%clk 0:01:33.7]} 23. Qd5+ {[%clk 0:01:58.2]} 23... Kh8 {[%clk
0:01:32.2]} 24. Nc4 {[%clk 0:01:53]} 24... Qf7 {[%clk 0:01:12]} 25. Qxc5 {[%clk
0:01:52.4]} 25... Rac8 {[%clk 0:01:08.2]} 26. Qb4 {[%clk 0:01:44.6]} 26... e4
{[%clk 0:01:06.2]} 27. Rd1 {[%clk 0:01:41.5]} 27... f4 {[%clk 0:00:56.6]} 28. d7
{[%clk 0:01:37.2]} 28... Rcd8 {[%clk 0:00:56.5]} 29. Nb6 {[%clk 0:01:30]} 29...
f3 {[%clk 0:00:51.8]} 30. Bc4 {[%clk 0:01:28.3]} 30... Qf4 {[%clk 0:00:44.2]}
31. g3 {[%clk 0:01:25.4]} 31... Qh6 {[%clk 0:00:40.5]} 32. Qe7 {[%clk
0:01:19.3]} 32... e3 {[%clk 0:00:28.3]} 33. Qxe3 {[%clk 0:01:18]} 33... Qxe3
{[%clk 0:00:16.2]} 34. fxe3 {[%clk 0:01:18.9]} 34... f2+ {[%clk 0:00:11.4]} 35.
Kf1 {[%clk 0:01:18.7]} 35... Bh6 {[%clk 0:00:10.9]} 36. Rd3 {[%clk 0:01:03.6]}
36... Rf3 {[%clk 0:00:09.5]} 37. Be6 {[%clk 0:00:19]} 37... Rxe3 {[%clk
0:00:08.2]} 38. Rxe3 {[%clk 0:00:19]} 38... Bxe3 {[%clk 0:00:09.1]} 39. Nc4
{[%clk 0:00:18.8]} 39... Bd4 {[%clk 0:00:06.5]} 40. Nd6 {[%clk 0:00:18.9]} 40...
Kg7 {[%clk 0:00:06.6]} 41. Nb7 {[%clk 0:00:18.9]} 41... Bb6 {[%clk 0:00:05]} 42.
Nxd8 {[%clk 0:00:18.9]} 42... Bxd8 {[%clk 0:00:05.9]} 43. Kxf2 {[%clk
0:00:19.7]} 43... Kf6 {[%clk 0:00:06.7]} 44. Bb3 {[%clk 0:00:18.9]} 44... Ke7
{[%clk 0:00:06.1]} 45. Ba4 {[%clk 0:00:19.2]} 45... Bc7 {[%clk 0:00:06]} 46. Kf3
{[%clk 0:00:19.2]} 46... h5 {[%clk 0:00:05.7]} 47. h3 {[%clk 0:00:18.8]} 47...
g5 {[%clk 0:00:04.7]} 48. g4 {[%clk 0:00:18]} 48... h4 {[%clk 0:00:04.8]} 49.
Ke4 {[%clk 0:00:17.8]} 49... a5 {[%clk 0:00:04.7]} 50. Kd5 {[%clk 0:00:17.6]}
50... Kd8 {[%clk 0:00:03.8]} 51. Kc6 {[%clk 0:00:14.7]} 51... Bf4 {[%clk
0:00:04.3]} 52. Bb3 {[%clk 0:00:13]} 52... Bd2 {[%clk 0:00:05.2]} 53. Be6 {[%clk
0:00:13.4]} 53... Bf4 {[%clk 0:00:05.3]} 54. Bf5 {[%clk 0:00:10.1]} 54... Bd2
{[%clk 0:00:06.2]} 55. Kb5 {[%clk 0:00:10.9]} 55... Be1 {[%clk 0:00:06.1]} 56.
a4 {[%clk 0:00:10.9]} 56... Bd2 {[%clk 0:00:07]} 57. Kc4 {[%clk 0:00:11]} 57...
Bb4 {[%clk 0:00:07.2]} 58. Kb5 {[%clk 0:00:09.4]} 58... Bd2 {[%clk 0:00:06.5]}
59. Kc4 {[%clk 0:00:10.3]} 59... Bb4 {[%clk 0:00:06.1]} 60. Kb5 {[%clk
0:00:11.2]} 60... Bd2 {[%clk 0:00:06]} 1/2-1/2

[Event "*** Titled Tuesday Blitz"]
[Site "Chess.com"]
[Date "2021.02.02"]
[Round "10"]
[White "Nozdrachev_Leonid"]
[Black "MartinMatthiesen"]
[Result "0-1"]
[WhiteElo "2517"]
[BlackElo "2384"]
[TimeControl "180+1"]
[EndTime "11:57:30 PST"]
[Termination "MartinMatthiesen won on time"]

1. e4 {[%clk 0:03:00.9]} 1... c6 {[%clk 0:02:59.9]} 2. d4 {[%clk 0:02:59.6]}
2... d5 {[%clk 0:03:00]} 3. Nc3 {[%clk 0:02:59]} 3... dxe4 {[%clk 0:02:59.6]} 4.
Nxe4 {[%clk 0:02:58.6]} 4... Bf5 {[%clk 0:03:00.1]} 5. Ng3 {[%clk 0:02:57.9]}
5... Bg6 {[%clk 0:03:00.4]} 6. h4 {[%clk 0:02:57.5]} 6... h6 {[%clk 0:02:59.9]}
7. h5 {[%clk 0:02:56.9]} 7... Bh7 {[%clk 0:02:59.6]} 8. Nf3 {[%clk 0:02:57.4]}
8... Nd7 {[%clk 0:02:58.2]} 9. Bd3 {[%clk 0:02:57]} 9... Bxd3 {[%clk 0:02:57.7]}
10. Qxd3 {[%clk 0:02:57.9]} 10... e6 {[%clk 0:02:56.9]} 11. Bd2 {[%clk
0:02:57.5]} 11... Ngf6 {[%clk 0:02:49.4]} 12. O-O-O {[%clk 0:02:56.5]} 12... Be7
{[%clk 0:02:34]} 13. Kb1 {[%clk 0:02:54.9]} 13... O-O {[%clk 0:02:31.3]} 14. Ne4
{[%clk 0:02:54.1]} 14... Nxe4 {[%clk 0:02:30.5]} 15. Qxe4 {[%clk 0:02:55]} 15...
Nf6 {[%clk 0:02:30.5]} 16. Qe2 {[%clk 0:02:54.2]} 16... Qd5 {[%clk 0:02:28.9]}
17. Be3 {[%clk 0:02:54]} 17... b5 {[%clk 0:02:05.9]} 18. Ne5 {[%clk 0:02:40.8]}
18... a5 {[%clk 0:01:53.7]} 19. g4 {[%clk 0:02:36.8]} 19... a4 {[%clk
0:01:52.6]} 20. f3 {[%clk 0:02:26.9]} 20... b4 {[%clk 0:01:37.5]} 21. Qc4 {[%clk
0:02:12]} 21... Qxc4 {[%clk 0:01:32.3]} 22. Nxc4 {[%clk 0:02:12.9]} 22... Nd5
{[%clk 0:01:31.4]} 23. Rhe1 {[%clk 0:02:10.1]} 23... a3 {[%clk 0:01:29.6]} 24.
Bc1 {[%clk 0:02:05.9]} 24... axb2 {[%clk 0:01:29.2]} 25. Bxb2 {[%clk 0:02:05.5]}
25... Ra6 {[%clk 0:01:24]} 26. Rd3 {[%clk 0:01:42]} 26... Rb8 {[%clk 0:01:15.9]}
27. Rb3 {[%clk 0:01:35.4]} 27... Rba8 {[%clk 0:01:10.3]} 28. Ne5 {[%clk
0:01:30.9]} 28... Bg5 {[%clk 0:00:34.1]} 29. a3 {[%clk 0:01:03.8]} 29... bxa3
{[%clk 0:00:32.9]} 30. Bc1 {[%clk 0:01:03.3]} 30... a2+ {[%clk 0:00:21.5]} 31.
Ka1 {[%clk 0:01:02.7]} 31... Bxc1 {[%clk 0:00:18.9]} 32. Rxc1 {[%clk 0:01:02.1]}
32... f6 {[%clk 0:00:13.7]} 33. Nd7 {[%clk 0:00:53]} 33... Ra4 {[%clk
0:00:12.3]} 34. c3 {[%clk 0:00:49.1]} 34... Ra3 {[%clk 0:00:12.3]} 35. Rxa3
{[%clk 0:00:43.7]} 35... Rxa3 {[%clk 0:00:13.2]} 36. Nc5 {[%clk 0:00:37.9]}
36... Kf7 {[%clk 0:00:12.6]} 37. Ne4 {[%clk 0:00:36.1]} 37... f5 {[%clk
0:00:13]} 38. gxf5 {[%clk 0:00:33.3]} 38... exf5 {[%clk 0:00:13.9]} 39. Nd6+
{[%clk 0:00:33.3]} 39... Ke6 {[%clk 0:00:14.1]} 40. Nc4 {[%clk 0:00:32.7]} 40...
Rxc3 {[%clk 0:00:14.2]} 41. Re1+ {[%clk 0:00:30.2]} 41... Kf6 {[%clk 0:00:14.6]}
42. Nd6 {[%clk 0:00:26.6]} 42... Nb4 {[%clk 0:00:13.4]} 43. Rg1 {[%clk 0:00:19]}
43... Ra3 {[%clk 0:00:12.6]} 44. Kb2 {[%clk 0:00:16.4]} 44... Ra6 {[%clk
0:00:11.4]} 45. Ne8+ {[%clk 0:00:14.8]} 45... Kf7 {[%clk 0:00:11]} 46. Nd6+
{[%clk 0:00:14.5]} 46... Ke6 {[%clk 0:00:10.5]} 47. Nc4 {[%clk 0:00:12.1]} 47...
Kd5 {[%clk 0:00:07]} 48. Ne3+ {[%clk 0:00:11.9]} 48... Kxd4 {[%clk 0:00:06.8]}
49. Nxf5+ {[%clk 0:00:11.7]} 49... Kd3 {[%clk 0:00:07.1]} 50. Nxg7 {[%clk
0:00:11.2]} 50... c5 {[%clk 0:00:06.2]} 51. Ne8 {[%clk 0:00:05.6]} 51... c4
{[%clk 0:00:06.2]} 52. Rd1+ {[%clk 0:00:04.8]} 52... Ke2 {[%clk 0:00:06.1]} 53.
Ra1 {[%clk 0:00:04.8]} 53... Nd3+ {[%clk 0:00:03.6]} 54. Kc3 {[%clk 0:00:04.4]}
54... Ra4 {[%clk 0:00:03.5]} 55. Nd6 {[%clk 0:00:03.8]} 55... Nf4 {[%clk
0:00:02.7]} 56. Nxc4 {[%clk 0:00:03.7]} 56... Kxf3 {[%clk 0:00:02.7]} 57. Kb3
{[%clk 0:00:03.6]} 57... Ra6 {[%clk 0:00:02.8]} 58. Rf1+ {[%clk 0:00:01.3]}
58... Kg4 {[%clk 0:00:03]} 59. Rg1+ {[%clk 0:00:01.1]} 59... Kxh5 {[%clk
0:00:03.4]} 0-1

[Event "*** Titled Tuesday Blitz"]
[Site "Chess.com"]
[Date "2021.02.02"]
[Round "10"]
[White "sara_khm"]
[Black "kingofthenil"]
[Result "1-0"]
[WhiteElo "2530"]
[BlackElo "2658"]
[TimeControl "180+1"]
[EndTime "11:57:33 PST"]
[Termination "sara_khm won on time"]

1. d4 {[%clk 0:02:40.7]} 1... Nf6 {[%clk 0:02:58.3]} 2. Nf3 {[%clk 0:02:41.3]}
2... c5 {[%clk 0:02:58.2]} 3. d5 {[%clk 0:02:40]} 3... g6 {[%clk 0:02:56.8]} 4.
c4 {[%clk 0:02:37.9]} 4... Bg7 {[%clk 0:02:56.9]} 5. Nc3 {[%clk 0:02:38.5]} 5...
O-O {[%clk 0:02:57.4]} 6. e4 {[%clk 0:02:39]} 6... d6 {[%clk 0:02:57.6]} 7. Bd3
{[%clk 0:02:39.2]} 7... Na6 {[%clk 0:02:58.1]} 8. O-O {[%clk 0:02:39.2]} 8...
Nc7 {[%clk 0:02:59]} 9. Ne1 {[%clk 0:02:33.6]} 9... e6 {[%clk 0:02:56.7]} 10. h3
{[%clk 0:02:26.3]} 10... exd5 {[%clk 0:02:48.1]} 11. exd5 {[%clk 0:02:26.4]}
11... b5 {[%clk 0:02:49]} 12. Bf4 {[%clk 0:02:20.2]} 12... Rb8 {[%clk
0:02:33.4]} 13. Qc2 {[%clk 0:02:12.8]} 13... bxc4 {[%clk 0:02:29.7]} 14. Bxc4
{[%clk 0:02:12.4]} 14... Bf5 {[%clk 0:02:30.1]} 15. Qd2 {[%clk 0:02:07.3]} 15...
Ne4 {[%clk 0:02:01.7]} 16. Nxe4 {[%clk 0:02:07.2]} 16... Bxe4 {[%clk 0:02:02.6]}
17. Nd3 {[%clk 0:02:07.5]} 17... Nxd5 {[%clk 0:01:16.9]} 18. Bxd5 {[%clk
0:02:06.9]} 18... Bxd5 {[%clk 0:01:17.8]} 19. Nxc5 {[%clk 0:01:57.5]} 19... Bc4
{[%clk 0:00:29.6]} 20. Rfc1 {[%clk 0:01:51]} 20... Rxb2 {[%clk 0:00:26.3]} 21.
Qxd6 {[%clk 0:01:46.3]} 21... Bxa2 {[%clk 0:00:23.3]} 22. Nd3 {[%clk 0:01:32.8]}
22... Qxd6 {[%clk 0:00:08.7]} 23. Bxd6 {[%clk 0:01:32]} 23... Rd8 {[%clk
0:00:09.6]} 24. Nxb2 {[%clk 0:01:25.6]} 24... Bxb2 {[%clk 0:00:10.5]} 25. Rxa2
{[%clk 0:01:21.4]} 25... Bxc1 {[%clk 0:00:09.9]} 26. Bc5 {[%clk 0:01:19.5]}
26... Rc8 {[%clk 0:00:04.9]} 27. Bxa7 {[%clk 0:01:16.8]} 27... Ra8 {[%clk
0:00:04.9]} 28. Rc2 {[%clk 0:01:14.4]} 28... Rxa7 {[%clk 0:00:03.3]} 29. Rxc1
{[%clk 0:01:14.8]} 29... h5 {[%clk 0:00:03.9]} 30. g3 {[%clk 0:01:14.9]} 30...
Ra6 {[%clk 0:00:03.8]} 31. Kg2 {[%clk 0:01:15.3]} 31... Rf6 {[%clk 0:00:04.7]}
32. Rc3 {[%clk 0:01:15.5]} 32... Kg7 {[%clk 0:00:05.6]} 33. Rc7 {[%clk
0:01:15.2]} 33... Rf5 {[%clk 0:00:05.7]} 34. g4 {[%clk 0:01:15.4]} 34... hxg4
{[%clk 0:00:04.3]} 35. hxg4 {[%clk 0:01:15.5]} 35... Rf4 {[%clk 0:00:05]} 36.
Kg3 {[%clk 0:01:15.9]} 36... g5 {[%clk 0:00:05.1]} 37. Rc5 {[%clk 0:01:15.6]}
37... f6 {[%clk 0:00:05.4]} 38. f3 {[%clk 0:01:15]} 38... Kg6 {[%clk 0:00:04.2]}
39. Rc7 {[%clk 0:01:14.9]} 39... Rb4 {[%clk 0:00:04.6]} 40. Re7 {[%clk
0:01:14.9]} 40... Rb1 {[%clk 0:00:03.7]} 41. Kf2 {[%clk 0:01:13.7]} 41... Rb2+
{[%clk 0:00:03.3]} 42. Ke3 {[%clk 0:01:14]} 42... Rb3+ {[%clk 0:00:04.2]} 43.
Kf2 {[%clk 0:01:14.4]} 43... Ra3 {[%clk 0:00:04.3]} 44. Re3 {[%clk 0:01:14.4]}
44... Ra2+ {[%clk 0:00:04.5]} 45. Kg3 {[%clk 0:01:14]} 45... Rb2 {[%clk
0:00:04.6]} 46. Rd3 {[%clk 0:01:13.1]} 46... Kf7 {[%clk 0:00:04.7]} 47. Rd7+
{[%clk 0:01:12.8]} 47... Ke6 {[%clk 0:00:05.4]} 48. Rc7 {[%clk 0:01:11.3]} 48...
Rb6 {[%clk 0:00:05.8]} 49. Kf2 {[%clk 0:01:10.7]} 49... Ke5 {[%clk 0:00:06.2]}
50. Re7+ {[%clk 0:01:09.6]} 50... Kd6 {[%clk 0:00:04.8]} 51. Re4 {[%clk
0:01:08.9]} 51... Kd5 {[%clk 0:00:04.5]} 52. Re2 {[%clk 0:01:07.4]} 52... Rb4
{[%clk 0:00:03.3]} 53. Kg3 {[%clk 0:01:07.5]} 53... Rd4 {[%clk 0:00:02.7]} 54.
Re8 {[%clk 0:01:05.6]} 54... Kd6 {[%clk 0:00:02.3]} 55. Kf2 {[%clk 0:01:05.4]}
55... Rd5 {[%clk 0:00:02.4]} 56. Re4 {[%clk 0:00:59.5]} 56... Kd7 {[%clk
0:00:02.1]} 57. Ke3 {[%clk 0:00:59.4]} 57... Kd6 {[%clk 0:00:02.7]} 58. f4
{[%clk 0:00:59.7]} 58... gxf4+ {[%clk 0:00:01.7]} 59. Kxf4 {[%clk 0:01:00.1]}
59... Re5 {[%clk 0:00:01.2]} 60. Rxe5 {[%clk 0:00:58.2]} 60... fxe5+ {[%clk
0:00:02.1]} 61. Kf5 {[%clk 0:00:58.5]} 61... Ke7 {[%clk 0:00:01.3]} 62. Kxe5
{[%clk 0:00:58]} 62... Kf7 {[%clk 0:00:01.9]} 63. Kf5 {[%clk 0:00:58.5]} 63...
Kg7 {[%clk 0:00:02.5]} 64. Kg5 {[%clk 0:00:58.8]} 64... Kg8 {[%clk 0:00:02.9]}
65. Kg6 {[%clk 0:00:58.8]} 65... Kh8 {[%clk 0:00:02.5]} 66. Kf7 {[%clk
0:00:58.6]} 66... Kh7 {[%clk 0:00:03.2]} 67. g5 {[%clk 0:00:58.9]} 67... Kh8
{[%clk 0:00:04.1]} 68. Kf6 {[%clk 0:00:52.6]} 68... Kh7 {[%clk 0:00:02.4]} 69.
Kf7 {[%clk 0:00:46.4]} 69... Kh8 {[%clk 0:00:02.5]} 70. Kg6 {[%clk 0:00:44.8]}
70... Kg8 {[%clk 0:00:02.8]} 71. Kh6 {[%clk 0:00:45.1]} 71... Kh8 {[%clk
0:00:03.1]} 72. g6 {[%clk 0:00:45.1]} 72... Kg8 {[%clk 0:00:03.6]} 73. g7 {[%clk
0:00:45.6]} 73... Kf7 {[%clk 0:00:04.3]} 74. Kh7 {[%clk 0:00:46]} 1-0